fUST/lending_fUST_20250315
["ID","MTS","AMOUNT","RATE_DAILY","PERIOD"]
[356164196,1741979439791,-500.0,8.493e-05,2]
[356164197,1741979439800,-512.15694133,8.493e-05,2]
[356164198,1741979439810,-563.36,8.493e-05,2]
[356164199,1741979439819,-500.0,8.493e-05,2]
[356164200,1741979439828,-500.0,8.493e-05,2]
[356164201,1741979439838,-500.0,8.493e-05,2]
[356164202,1741979439848,-500.0,8.493e-05,2]
[356164203,1741979439857,-640.16,8.493e-05,2]
[356164204,1741979439866,-500.0,8.493e-05,2]
[356164205,1741979439875,-500.0,8.493e-05,2]
[356164206,1741979439885,-602.29,8.493e-05,2]
[356164207,1741979439895,-489.98153287,8.493e-05,2]
[356164208,1741979439904,-500.0,8.493e-05,2]
[356164209,1741979439913,-500.0,8.493e-05,2]
[356164210,1741979439923,-819.03,8.493e-05,2]
[356164211,1741979439932,-697.4,8.493e-05,2]
[356164212,1741979439942,-500.0,8.493e-05,2]
[356164213,1741979439952,-500.0,8.493e-05,2]
[356164214,1741979439962,-500.0,8.493e-05,2]
[356164215,1741979439971,-579.05767375,8.493e-05,2]
[356164216,1741979439981,-500.0,8.493e-05,2]
[356164217,1741979439991,-1050.59,8.493e-05,2]
[356164218,1741979440000,-500.0,8.493e-05,2]
[356164219,1741979440010,-500.0,8.493e-05,2]
[356164220,1741979440020,-500.0,8.493e-05,2]
[356164221,1741979440029,-500.0,8.493e-05,2]
[356164222,1741979440039,-524.03,8.493e-05,2]
[356164223,1741979440048,-500.0,8.493e-05,2]
[356164224,1741979440058,-500.0,8.493e-05,2]
[356164225,1741979440067,-500.0,8.493e-05,2]
[356164226,1741979440076,-500.0,8.493e-05,2]
[356164227,1741979440086,-608.99,8.493e-05,2]
[356164228,1741979440095,-500.0,8.493e-05,2]
[356164229,1741979440105,-778.24,8.493e-05,2]
[356164230,1741979440114,-516.34,8.493e-05,2]
[356164231,1741979440124,-500.0,8.493e-05,2]
[356164232,1741979440134,-500.0,8.493e-05,2]
[356164233,1741979440143,-500.0,8.493e-05,2]
[356164234,1741979440152,-500.0,8.493e-05,2]
[356164235,1741979440162,-598.22,8.493e-05,2]
[356164236,1741979440172,-500.0,8.493e-05,2]
[356164238,1741979440183,-500.0,8.493e-05,2]
[356164240,1741979440192,-500.0,8.493e-05,2]
[356164242,1741979440202,-500.0,8.493e-05,2]
[356164244,1741979440211,-500.0,8.493e-05,2]
[356164245,1741979440220,-648.65968312,8.493e-05,2]
[356164246,1741979440229,-500.0,8.493e-05,2]
[356164247,1741979440239,-857.1,8.493e-05,2]
[356164249,1741979440250,-500.0,8.493e-05,2]
[356164251,1741979440259,-500.0,8.493e-05,2]
[356164252,1741979440269,-171.39074958,8.493e-05,2]
[356164253,1741979440279,-500.0,8.493e-05,2]
[356164254,1741979440288,-500.0,8.493e-05,2]
[356164255,1741979440298,-500.0,8.493e-05,2]
[356164256,1741979440308,-500.0,8.493e-05,2]
[356164257,1741979440317,-500.0,8.493e-05,2]
[356164258,1741979440327,-500.0,8.493e-05,2]
[356164259,1741979440337,-419.46330584,8.493e-05,2]
[356164260,1741979440346,-500.0,8.493e-05,2]
[356164261,1741979440355,-500.0,8.493e-05,2]
[356164262,1741979440365,-1301.46,8.493e-05,2]
[356164263,1741979440375,-500.0,8.493e-05,2]
[356164264,1741979440384,-500.38,8.493e-05,2]
[356164265,1741979440394,-500.0,8.493e-05,2]
[356164266,1741979440406,-826.16,8.493e-05,2]
[356164267,1741979440418,-500.0,8.493e-05,2]
[356164268,1741979440429,-500.0,8.493e-05,2]
[356164269,1741979440439,-500.0,8.493e-05,2]
[356164270,1741979440449,-500.0,8.493e-05,2]
[356164271,1741979440458,-500.0,8.493e-05,2]
[356164272,1741979440468,-572.22,8.493e-05,2]
[356164273,1741979440478,-1168.36,8.493e-05,2]
[356164274,1741979440489,-500.0,8.493e-05,2]
[356164275,1741979440499,-500.0,8.493e-05,2]
[356164276,1741979440510,-500.0,8.493e-05,2]
[356164277,1741979440519,-614.98,8.493e-05,2]
[356164278,1741979440529,-500.0,8.493e-05,2]
[356164279,1741979440541,-500.0,8.493e-05,2]
[356164280,1741979440550,-371.39459359,8.493e-05,2]
[356164281,1741979440776,-128.60540641,8.493e-05,2]
[356164282,1741979440786,-500.0,8.493e-05,2]
[356164283,1741979440796,-704.09,8.493e-05,2]
[356164284,1741979440807,-500.0,8.493e-05,2]
[356164285,1741979440817,-758.9,8.493e-05,2]
[356164286,1741979440827,-723.45,8.493e-05,2]
[356164287,1741979440836,-500.0,8.493e-05,2]
[356164288,1741979440846,-661.29,8.493e-05,2]
[356164289,1741979440855,-500.0,8.493e-05,2]
[356164290,1741979440864,-13.66459359,8.493e-05,2]
[356164304,1741979443077,-300.07417966,8.493e-05,2]
[356164305,1741979443089,-267.83122675,8.493e-05,2]
[356164306,1741979443099,-57.94307255,8.493e-05,2]
[356164307,1741979443112,-442.05692745,8.493e-05,2]
[356164308,1741979443122,-500.0,8.493e-05,2]
[356164309,1741979443131,-625.0,8.493e-05,2]
[356164310,1741979443141,-500.0,8.493e-05,2]
[356164311,1741979443151,-500.0,8.493e-05,2]
[356164312,1741979443160,-500.0,8.493e-05,2]
[356164313,1741979443170,-500.0,8.493e-05,2]
[356164315,1741979443179,-232.94307455,8.493e-05,2]
[356164316,1741979443192,-311.87692545,8.493e-05,2]
[356164318,1741979443201,-1097.21,8.493e-05,2]
[356164320,1741979443211,-505.6,8.493e-05,2]
[356164321,1741979443221,-302.8509708,8.493e-05,2]
[356164322,1741979443233,-197.1490292,8.493e-05,2]
[356164323,1741979443242,-577.4,8.493e-05,2]
[356164324,1741979443252,-500.0,8.493e-05,2]
[356164325,1741979443262,-526.32,8.493e-05,2]
[356164326,1741979443272,-500.0,8.493e-05,2]
[356164327,1741979443281,-500.0,8.493e-05,2]
[356164328,1741979443291,-563.01,8.493e-05,2]
[356164329,1741979443301,-500.0,8.493e-05,2]
[356164330,1741979443310,-500.0,8.493e-05,2]
[356164331,1741979443320,-500.0,8.493e-05,2]
[356164332,1741979443329,-512.1209708,8.493e-05,2]
[356164346,1741979447149,-500.0,8.219e-05,2]
[356164347,1741979447159,-586.5090292,8.493e-05,2]
[356164348,1741979447169,-500.0,8.493e-05,2]
[356164349,1741979447178,-500.0,8.493e-05,2]
[356164350,1741979447188,-895.03,8.493e-05,2]
[356164351,1741979447199,-595.77,8.493e-05,2]
[356164352,1741979447208,-500.0,8.493e-05,2]
[356164353,1741979447217,-500.0,8.493e-05,2]
[356164354,1741979447227,-500.0,8.493e-05,2]
[356164355,1741979447238,-500.0,8.493e-05,2]
[356164356,1741979447247,-741.35,8.493e-05,2]
[356164357,1741979447257,-500.0,8.493e-05,2]
[356164358,1741979447267,-500.0,8.493e-05,2]
[356164359,1741979447276,-663.44,8.493e-05,2]
[356164360,1741979447286,-500.0,8.493e-05,2]
[356164361,1741979447295,-500.0,8.493e-05,2]
[356164362,1741979447305,-500.0,8.493e-05,2]
[356164363,1741979447314,-2516.05,8.493e-05,2]
[356164364,1741979447324,-5361.25,8.493e-05,2]
[356164365,1741979447334,-574.16,8.493e-05,2]
[356164366,1741979447343,-500.0,8.493e-05,2]
[356164367,1741979447353,-500.0,8.493e-05,2]
[356164368,1741979447362,-500.0,8.493e-05,2]
[356164369,1741979447373,-9916.54,8.493e-05,2]
[356164370,1741979447383,-500.0,8.493e-05,2]
[356164371,1741979447393,-500.0,8.493e-05,2]
[356164372,1741979447403,-1635.06,8.493e-05,2]
[356164373,1741979447415,-324.93997871,8.493e-05,2]
[356164374,1741979447425,-1611.03,8.493e-05,2]
[356164375,1741979447435,-500.0,8.493e-05,2]
[356164376,1741979447446,-1774.74,8.493e-05,2]
[356164377,1741979447457,-500.0,8.493e-05,2]
[356164378,1741979447467,-519.12,8.493e-05,2]
[356164379,1741979447477,-588.06,8.493e-05,2]
[356164380,1741979447488,-691.81,8.493e-05,2]
[356164381,1741979447498,-500.0,8.493e-05,2]
[356164382,1741979447507,-500.0,8.493e-05,2]
[356164383,1741979447517,-602.01,8.493e-05,2]
[356164384,1741979447527,-500.0,8.493e-05,2]
[356164385,1741979447536,-1437.27,8.493e-05,2]
[356164386,1741979447546,-18769.7,8.493e-05,2]
[356164387,1741979447556,-1085.52,8.493e-05,2]
[356164388,1741979447566,-772.95,8.493e-05,2]
[356164389,1741979447576,-500.0,8.493e-05,2]
[356164390,1741979447585,-500.0,8.493e-05,2]
[356164391,1741979447595,-561.34,8.493e-05,2]
[356164392,1741979447605,-1360.72,8.493e-05,2]
[356164393,1741979447614,-1961.8,8.493e-05,2]
[356164394,1741979447624,-500.0,8.493e-05,2]
[356164395,1741979447634,-500.0,8.493e-05,2]
[356164396,1741979447644,-500.0,8.493e-05,2]
[356164397,1741979447653,-1018.67,8.493e-05,2]
[356164398,1741979447663,-721.44,8.493e-05,2]
[356164399,1741979447672,-5578.14,8.493e-05,2]
[356164400,1741979447683,-1019.9,8.493e-05,2]
[356164401,1741979447692,-500.0,8.493e-05,2]
[356164402,1741979447702,-2069.12,8.493e-05,2]
[356164403,1741979447711,-222.42653864,8.493e-05,2]
[356164404,1741979447721,-4493.59,8.493e-05,2]
[356164405,1741979447731,-697.49,8.493e-05,2]
[356164406,1741979447741,-500.0,8.493e-05,2]
[356164407,1741979447751,-500.0,8.493e-05,2]
[356164408,1741979447762,-13371.16,8.493e-05,2]
[356164409,1741979447771,-9017.47,8.493e-05,2]
[356164410,1741979447781,-1546.02,8.493e-05,2]
[356164411,1741979447791,-500.0,8.493e-05,2]
[356164412,1741979447801,-500.0,8.493e-05,2]
[356164413,1741979447811,-500.0,8.493e-05,2]
[356164414,1741979447821,-500.0,8.493e-05,2]
[356164415,1741979447831,-500.0,8.493e-05,2]
[356164416,1741979447841,-631.4,8.493e-05,2]
[356164417,1741979447851,-1481.57,8.493e-05,2]
[356164418,1741979447861,-500.0,8.493e-05,2]
[356164419,1741979447871,-609.57,8.493e-05,2]
[356164420,1741979447881,-500.0,8.493e-05,2]
[356164421,1741979447891,-1709.97,8.493e-05,2]
[356164422,1741979447901,-14764.6,8.493e-05,2]
[356164423,1741979447911,-179.77986742,8.493e-05,2]
[356164424,1741979447921,-500.0,8.493e-05,2]
[356164425,1741979447930,-990.88,8.493e-05,2]
[356164426,1741979447940,-500.0,8.493e-05,2]
[356164427,1741979447949,-16260.76,8.493e-05,2]
[356164428,1741979447959,-500.0,8.493e-05,2]
[356164429,1741979447969,-2700.56,8.493e-05,2]
[356164430,1741979447979,-3060.56,8.493e-05,2]
[356164431,1741979447989,-895.95,8.493e-05,2]
[356164432,1741979447998,-713.23,8.493e-05,2]
[356164433,1741979448007,-936.12,8.493e-05,2]
[356164434,1741979448016,-18777.23,8.493e-05,2]
[356164435,1741979448026,-500.0,8.493e-05,2]
[356164436,1741979448036,-3743.48,8.493e-05,2]
[356164437,1741979448046,-500.0,8.493e-05,2]
[356164438,1741979448056,-7215.64,8.493e-05,2]
[356164439,1741979448071,-500.0,8.493e-05,2]
[356164440,1741979448085,-835.22,8.493e-05,2]
[356164441,1741979448099,-500.0,8.493e-05,2]
[356164442,1741979448111,-5818.67,8.493e-05,2]
[356164443,1741979448123,-1164.44,8.493e-05,2]
[356164444,1741979448134,-500.0,8.493e-05,2]
[356164445,1741979448145,-500.0,8.493e-05,2]
[356164446,1741979448157,-542.24,8.493e-05,2]
[356164447,1741979448169,-518.24,8.493e-05,2]
[356164448,1741979448182,-4155.39,8.493e-05,2]
[356164449,1741979448195,-12636.61,8.493e-05,2]
[356164450,1741979448207,-500.0,8.493e-05,2]
[356164451,1741979448220,-611.88,8.493e-05,2]
[356164452,1741979448232,-500.0,8.493e-05,2]
[356164453,1741979448244,-500.0,8.493e-05,2]
[356164454,1741979448255,-500.0,8.493e-05,2]
[356164455,1741979448268,-1512.02,8.493e-05,2]
[356164456,1741979448281,-500.0,8.493e-05,2]
[356164457,1741979448294,-500.0,8.493e-05,2]
[356164458,1741979448307,-15619.4,8.493e-05,2]
[356164459,1741979448319,-500.0,8.493e-05,2]
[356164460,1741979448332,-521.12,8.493e-05,2]
[356164461,1741979448344,-1763.91,8.493e-05,2]
[356164462,1741979448355,-500.0,8.493e-05,2]
[356164463,1741979448366,-500.0,8.493e-05,2]
[356164464,1741979448378,-4999.5,8.493e-05,2]
[356164465,1741979448392,-538.44,8.493e-05,2]
[356164466,1741979448407,-500.0,8.493e-05,2]
[356164467,1741979448419,-500.0,8.493e-05,2]
[356164468,1741979448431,-2453.42,8.493e-05,2]
[356164469,1741979448443,-1036.55,8.493e-05,2]
[356164470,1741979448454,-881.27,8.493e-05,2]
[356164471,1741979448464,-500.0,8.493e-05,2]
[356164472,1741979448475,-177.16610727,8.766e-05,2]
[356164473,1741979448487,-500.0,8.767e-05,2]
[356164474,1741979448501,-699.7,8.767e-05,2]
[356164475,1741979448512,-500.0,8.767e-05,2]
[356164476,1741979448524,-500.0,8.767e-05,2]
[356164477,1741979448537,-556.8,8.767e-05,2]
[356164478,1741979448550,-500.0,8.767e-05,2]
[356164479,1741979448562,-640.55,8.767e-05,2]
[356164480,1741979448576,-500.0,8.767e-05,2]
[356164481,1741979448588,-563.36,8.767e-05,2]
[356164482,1741979448601,-500.0,8.767e-05,2]
[356164483,1741979448613,-500.0,8.767e-05,2]
[356164484,1741979448626,-500.0,8.767e-05,2]
[356164485,1741979448638,-640.16,8.767e-05,2]
[356164486,1741979448649,-500.0,8.767e-05,2]
[356164487,1741979448659,-602.29,8.767e-05,2]
[356164488,1741979448669,-500.0,8.767e-05,2]
[356164489,1741979448679,-500.0,8.767e-05,2]
[356164490,1741979448692,-819.03,8.767e-05,2]
[356164491,1741979448704,-697.4,8.767e-05,2]
[356164492,1741979448716,-500.0,8.767e-05,2]
[356164493,1741979448729,-500.0,8.767e-05,2]
[356164494,1741979448741,-500.0,8.767e-05,2]
[356164495,1741979448753,-1050.59,8.767e-05,2]
[356164496,1741979448764,-500.0,8.767e-05,2]
[356164497,1741979448775,-500.0,8.767e-05,2]
[356164498,1741979448786,-500.0,8.767e-05,2]
[356164499,1741979448796,-524.03,8.767e-05,2]
[356164500,1741979448809,-500.0,8.767e-05,2]
[356164501,1741979448822,-500.0,8.767e-05,2]
[356164502,1741979448833,-238.18228544,8.767e-05,2]
[356164503,1741979448843,-500.0,8.767e-05,2]
[356164504,1741979448854,-608.99,8.767e-05,2]
[356164505,1741979448865,-500.0,8.767e-05,2]
[356164506,1741979448875,-778.24,8.767e-05,2]
[356164507,1741979448886,-516.34,8.767e-05,2]
[356164508,1741979448897,-500.0,8.767e-05,2]
[356164509,1741979448908,-500.0,8.767e-05,2]
[356164510,1741979448920,-500.0,8.767e-05,2]
[356164511,1741979448931,-598.22,8.767e-05,2]
[356164512,1741979448943,-500.0,8.767e-05,2]
[356164513,1741979448954,-500.0,8.767e-05,2]
[356164514,1741979448966,-500.0,8.767e-05,2]
[356164515,1741979448979,-500.0,8.767e-05,2]
[356164516,1741979448991,-500.0,8.767e-05,2]
[356164517,1741979449003,-286.99826955,8.767e-05,2]
[356164518,1741979449014,-857.1,8.767e-05,2]
[356164519,1741979449025,-500.0,8.767e-05,2]
[356164520,1741979449037,-500.0,8.767e-05,2]
[356164521,1741979449048,-500.0,8.767e-05,2]
[356164522,1741979449060,-500.0,8.767e-05,2]
[356164523,1741979449071,-500.0,8.767e-05,2]
[356164524,1741979449081,-500.0,8.767e-05,2]
[356164525,1741979449092,-250.61500891,8.767e-05,2]
[356164526,1741979449103,-500.0,8.767e-05,2]
[356164527,1741979449115,-500.0,8.767e-05,2]
[356164528,1741979449126,-1301.46,8.767e-05,2]
[356164529,1741979449137,-500.38,8.767e-05,2]
[356164530,1741979449149,-500.0,8.767e-05,2]
[356164531,1741979449160,-826.16,8.767e-05,2]
[356164532,1741979449175,-500.0,8.767e-05,2]
[356164533,1741979449186,-500.0,8.767e-05,2]
[356164534,1741979449198,-500.0,8.767e-05,2]
[356164535,1741979449209,-505.05621334,8.767e-05,2]
[356164536,1741979449221,-500.0,8.767e-05,2]
[356164537,1741979449232,-572.22,8.767e-05,2]
[356164538,1741979449244,-1168.36,8.767e-05,2]
[356164539,1741979449254,-500.0,8.767e-05,2]
[356164540,1741979449265,-500.0,8.767e-05,2]
[356164541,1741979449278,-500.0,8.767e-05,2]
[356164542,1741979449290,-614.98,8.767e-05,2]
[356164543,1741979449301,-500.0,8.767e-05,2]
[356164544,1741979449313,-500.0,8.767e-05,2]
[356164545,1741979449324,-704.09,8.767e-05,2]
[356164546,1741979449335,-500.0,8.767e-05,2]
[356164547,1741979449346,-758.9,8.767e-05,2]
[356164548,1741979449357,-723.45,8.767e-05,2]
[356164549,1741979449368,-661.29,8.767e-05,2]
[356164550,1741979449379,-500.0,8.767e-05,2]
[356164551,1741979449390,-581.57,8.767e-05,2]
[356164552,1741979449402,-500.0,8.767e-05,2]
[356164553,1741979449416,-302.74017993,8.767e-05,2]
[356164554,1741979449428,-625.0,8.767e-05,2]
[356164555,1741979449440,-500.0,8.767e-05,2]
[356164556,1741979449451,-500.0,8.767e-05,2]
[356164557,1741979449463,-500.0,8.767e-05,2]
[356164558,1741979449475,-544.82,8.767e-05,2]
[356164559,1741979449486,-1097.21,8.767e-05,2]
[356164560,1741979449499,-505.6,8.767e-05,2]
[356164561,1741979449511,-500.0,8.767e-05,2]
[356164562,1741979449522,-577.4,8.767e-05,2]
[356164563,1741979449533,-500.0,8.767e-05,2]
[356164564,1741979449545,-526.32,8.767e-05,2]
[356164565,1741979449556,-500.0,8.767e-05,2]
[356164566,1741979449567,-563.01,8.767e-05,2]
[356164567,1741979449578,-500.0,8.767e-05,2]
[356164568,1741979449589,-500.0,8.767e-05,2]
[356164569,1741979449600,-500.0,8.767e-05,2]
[356164570,1741979449611,-1098.63,8.767e-05,2]
[356164571,1741979449622,-500.0,8.767e-05,2]
[356164572,1741979449633,-895.03,8.767e-05,2]
[356164573,1741979449643,-595.77,8.767e-05,2]
[356164574,1741979449654,-500.0,8.767e-05,2]
[356164575,1741979449665,-500.0,8.767e-05,2]
[356164576,1741979449676,-741.35,8.767e-05,2]
[356164577,1741979449687,-500.0,8.767e-05,2]
[356164578,1741979449698,-500.0,8.767e-05,2]
[356164579,1741979449709,-663.44,8.767e-05,2]
[356164580,1741979449721,-500.0,8.767e-05,2]
[356164581,1741979449732,-500.0,8.767e-05,2]
[356164582,1741979449743,-2516.05,8.767e-05,2]
[356164583,1741979449753,-5361.25,8.767e-05,2]
[356164584,1741979449765,-574.16,8.767e-05,2]
[356164585,1741979449776,-500.0,8.767e-05,2]
[356164586,1741979449787,-577.80360306,8.767e-05,2]
[356164587,1741979449799,-500.0,8.767e-05,2]
[356164588,1741979449810,-9916.54,8.767e-05,2]
[356164589,1741979449822,-500.0,8.767e-05,2]
[356164590,1741979449834,-500.0,8.767e-05,2]
[356164591,1741979449846,-1635.06,8.767e-05,2]
[356164592,1741979449857,-1611.03,8.767e-05,2]
[356164593,1741979449869,-500.0,8.767e-05,2]
[356164594,1741979449882,-1774.74,8.767e-05,2]
[356164595,1741979449893,-500.0,8.767e-05,2]
[356164596,1741979449905,-519.12,8.767e-05,2]
[356164597,1741979449917,-588.06,8.767e-05,2]
[356164598,1741979449929,-691.81,8.767e-05,2]
[356164599,1741979449941,-500.0,8.767e-05,2]
[356164600,1741979449951,-500.0,8.767e-05,2]
[356164601,1741979449963,-602.01,8.767e-05,2]
[356164602,1741979449975,-1437.27,8.767e-05,2]
[356164603,1741979449987,-500.0,8.767e-05,2]
[356164604,1741979450000,-18769.7,8.767e-05,2]
[356164605,1741979450011,-1085.52,8.767e-05,2]
[356164606,1741979450024,-772.95,8.767e-05,2]
[356164607,1741979450034,-209.80356416,8.767e-05,2]
[356164608,1741979450045,-150.36,8.767e-05,2]
[356164609,1741979450056,-150.36,8.767e-05,2]
[356164610,1741979450066,-197.28489786,8.767e-05,2]
[356164611,1741979450077,-150.36,8.767e-05,2]
[356164612,1741979450088,-500.0,8.767e-05,2]
[356164613,1741979450100,-561.34,8.767e-05,2]
[356164614,1741979450110,-1360.72,8.767e-05,2]
[356164615,1741979450120,-1961.8,8.767e-05,2]
[356164616,1741979450130,-155.05354628,8.767e-05,2]
[356164617,1741979450142,-500.0,8.767e-05,2]
[356164618,1741979450155,-500.0,8.767e-05,2]
[356164619,1741979450165,-500.0,8.767e-05,2]
[356164620,1741979450175,-1018.67,8.767e-05,2]
[356164621,1741979450186,-721.44,8.767e-05,2]
[356164622,1741979450196,-5578.14,8.767e-05,2]
[356164623,1741979450207,-1019.9,8.767e-05,2]
[356164624,1741979450217,-500.0,8.767e-05,2]
[356164625,1741979450227,-2069.12,8.767e-05,2]
[356164626,1741979450237,-4493.59,8.767e-05,2]
[356164627,1741979450247,-697.49,8.767e-05,2]
[356164628,1741979450259,-500.0,8.767e-05,2]
[356164629,1741979450269,-503.09,8.767e-05,2]
[356164630,1741979450279,-13371.16,8.767e-05,2]
[356164631,1741979450289,-9017.47,8.767e-05,2]
[356164632,1741979450300,-1546.02,8.767e-05,2]
[356164633,1741979450310,-555.1822697,8.767e-05,2]
[356164634,1741979450321,-500.0,8.767e-05,2]
[356164635,1741979450331,-500.0,8.767e-05,2]
[356164636,1741979450342,-500.0,8.767e-05,2]
[356164637,1741979450352,-631.4,8.767e-05,2]
[356164638,1741979450363,-1481.57,8.767e-05,2]
[356164639,1741979450373,-609.57,8.767e-05,2]
[356164640,1741979450383,-500.0,8.767e-05,2]
[356164641,1741979450394,-1709.97,8.767e-05,2]
[356164642,1741979450404,-14764.6,8.767e-05,2]
[356164643,1741979450417,-500.0,8.767e-05,2]
[356164644,1741979450427,-990.88,8.767e-05,2]
[356164645,1741979450437,-500.0,8.767e-05,2]
[356164646,1741979450447,-16260.76,8.767e-05,2]
[356164647,1741979450458,-218.5467675,8.767e-05,2]
[356164648,1741979450468,-2700.56,8.767e-05,2]
[356164649,1741979450488,-3060.56,8.767e-05,2]
[356164650,1741979450500,-895.95,8.767e-05,2]
[356164651,1741979450511,-713.23,8.767e-05,2]
[356164652,1741979450522,-936.12,8.767e-05,2]
[356164653,1741979450532,-18777.23,8.767e-05,2]
[356164654,1741979450543,-500.0,8.767e-05,2]
[356164655,1741979450553,-3743.48,8.767e-05,2]
[356164656,1741979450562,-500.0,8.767e-05,2]
[356164657,1741979450572,-7215.64,8.767e-05,2]
[356164658,1741979450581,-500.0,8.767e-05,2]
[356164659,1741979450591,-835.22,8.767e-05,2]
[356164660,1741979450600,-500.0,8.767e-05,2]
[356164661,1741979450609,-5818.67,8.767e-05,2]
[356164662,1741979450619,-1164.44,8.767e-05,2]
[356164663,1741979450628,-500.0,8.767e-05,2]
[356164664,1741979450637,-500.0,8.767e-05,2]
[356164665,1741979450646,-542.24,8.767e-05,2]
[356164666,1741979450654,-518.24,8.767e-05,2]
[356164667,1741979450662,-4155.39,8.767e-05,2]
[356164668,1741979450974,-12636.61,8.767e-05,2]
[356164669,1741979450990,-500.0,8.767e-05,2]
[356164670,1741979451002,-611.88,8.767e-05,2]
[356164671,1741979451011,-500.0,8.767e-05,2]
[356164672,1741979451021,-500.0,8.767e-05,2]
[356164673,1741979451033,-500.0,8.767e-05,2]
[356164674,1741979451043,-1512.02,8.767e-05,2]
[356164675,1741979451053,-500.0,8.767e-05,2]
[356164676,1741979451062,-500.0,8.767e-05,2]
[356164677,1741979451071,-11951.77894968,8.767e-05,2]
[356164678,1741979451088,-3667.62105032,8.767e-05,2]
[356164679,1741979451097,-500.0,8.767e-05,2]
[356164680,1741979451106,-1763.91,8.767e-05,2]
[356164681,1741979451116,-521.12,8.767e-05,2]
[356164682,1741979451125,-500.0,8.767e-05,2]
[356164683,1741979451134,-500.0,8.767e-05,2]
[356164684,1741979451144,-4999.5,8.767e-05,2]
[356164685,1741979451153,-538.44,8.767e-05,2]
[356164686,1741979451164,-500.0,8.767e-05,2]
[356164687,1741979451173,-500.0,8.767e-05,2]
[356164688,1741979451182,-2453.42,8.767e-05,2]
[356164689,1741979451192,-1036.55,8.767e-05,2]
[356164690,1741979451201,-881.27,8.767e-05,2]
[356164691,1741979451211,-500.0,8.767e-05,2]
[356164692,1741979451221,-11843.62131277,8.775e-05,2]
[356164693,1741979451231,-500.0,8.794e-05,2]
[356164694,1741979451240,-150.36,8.794e-05,2]
[356164695,1741979451250,-150.36,8.794e-05,2]
[356164696,1741979451259,-500.0,8.822e-05,2]
[356164697,1741979451268,-150.36,8.822e-05,2]
[356164698,1741979451277,-203.81789084,8.822e-05,2]
[356164699,1741979451286,-500.0,8.849e-05,2]
[356164700,1741979451296,-294.04866931,8.849e-05,2]
[356164701,1741979451305,-500.0,8.877e-05,2]
[356164702,1741979451314,-500.0,8.904e-05,2]
[356164703,1741979451323,-420.0,8.93e-05,2]
[356164704,1741979451332,-500.0,8.931e-05,2]
[356164705,1741979451345,-500.0,8.959e-05,2]
[356164706,1741979451354,-500.0,8.986e-05,2]
[356164707,1741979451364,-400.000001,9e-05,3]
[356164708,1741979451372,-500.0,9.014e-05,2]
[356164709,1741979451383,-833.875,9.019e-05,2]
[356164710,1741979451392,-500.0,9.041e-05,2]
[356164711,1741979451402,-500.0,9.041e-05,2]
[356164712,1741979451414,-699.7,9.041e-05,2]
[356164713,1741979451425,-500.0,9.041e-05,2]
[356164714,1741979451434,-500.0,9.041e-05,2]
[356164715,1741979451443,-556.8,9.041e-05,2]
[356164716,1741979451454,-139.66447237,9.041e-05,2]
[356164726,1741980413130,-231.3,8.055e-05,2]
[356164727,1741980413150,-10.88547723,8.193e-05,2]
[356164761,1741980532841,2900.4868532,7.397e-05,2]
[356164797,1741980632397,-489.11452277,8.193e-05,2]
[356164798,1741980632406,-500.0,8.193e-05,2]
[356164799,1741980632416,-500.0,8.193e-05,2]
[356164800,1741980632425,-300.0,8.217e-05,2]
[356164801,1741980632434,-207.87158773,8.218e-05,2]
[356164802,1741980632444,-500.0,8.218e-05,2]
[356164803,1741980632453,-481.31786213,8.218e-05,2]
[356164804,1741980632463,-242.18547723,8.218e-05,2]
[356164805,1741980632472,-532.86,8.219e-05,2]
[356164806,1741980632481,-500.0,8.219e-05,2]
[356164807,1741980632490,-500.0,8.219e-05,2]